bitfinex/quotes_SOLUSD_20260211
["timestamp","ask_amount","ask_price","bid_price","bid_amount"]
[1770792719525,1.3930774,81.069,81.043,1.43341637]
[1770792719723,1.3930774,81.069,81.042,41.0]
[1770792719911,1.3930774,81.059,81.042,41.0]
[1770792721632,1.3930774,81.059,81.035,12.34026925]
[1770792721822,4.67935437,81.08,81.018,1.43341637]
[1770792721823,1.3930774,81.049,81.018,1.43341637]
[1770792722025,1.3930774,81.029,80.993,1.43341637]
[1770792722351,4.67935437,81.02,80.993,1.43341637]
[1770792722536,4.67935437,81.02,80.995,1.43341637]
[1770792722917,1.3930774,81.019,80.995,1.43341637]
[1770792723234,1.3930774,81.009,80.984,41.06]
[1770792724237,49.3535278,81.048,80.984,41.06]
[1770792724238,13.95169354,81.0,80.984,41.06]
[1770792724627,1.3930774,80.989,80.961,1.43341637]
[1770792724832,1.3930774,80.999,80.966,1.43341637]
[1770792725331,12.55861614,80.99,80.966,1.43341637]
[1770792726841,12.55861614,81.0,80.968,1.43341637]
[1770792727027,12.34517128,81.004,80.968,1.43341637]
[1770792727228,12.34517128,81.004,80.97,1.43341637]
[1770792727741,12.55861614,81.0,80.97,1.43341637]
[1770792727916,12.55861614,81.0,80.969,41.14]
[1770792727917,1.3930774,81.008,80.972,1.43341637]
[1770792728323,12.55861614,81.0,80.972,1.43341637]
[1770792728732,1.3930774,80.989,80.969,41.14]
[1770792728942,1.3930774,80.989,80.964,13.78451645]
[1770792731032,1.3930774,80.987,80.964,1.43341637]
[1770792731235,12.34651825,80.995,80.966,1.43341637]
[1770792731537,12.55861614,81.0,80.966,1.43341637]
[1770792731844,12.34497812,81.005,80.966,1.43341637]
[1770792732031,12.55861614,81.0,80.966,1.43341637]
[1770792732339,13.95169354,81.0,80.966,1.43341637]
[1770792732560,13.95169354,81.0,80.969,1.43341637]
[1770792733132,12.55861614,81.0,80.969,1.43341637]
[1770792733649,1.3930774,80.999,80.969,1.43341637]
[1770792733943,12.55861614,81.01,80.971,1.43341637]
[1770792734149,1.3930774,81.008,80.971,1.43341637]
[1770792734855,1.3930774,81.008,80.973,1.43341637]
[1770792735348,1.3930774,81.029,80.981,1.43341637]
[1770792735531,1.3930774,81.029,80.972,43.22481845]
[1770792735532,1.3930774,81.019,80.983,1.43341637]
[1770792735728,1.3930774,81.017,80.983,1.43341637]
[1770792735933,12.55861614,81.02,80.983,1.43341637]
[1770792736239,13.95169354,81.02,80.983,1.43341637]
[1770792736638,1.3930774,81.019,80.985,1.43341637]
[1770792736834,1.3930774,81.018,80.985,1.43341637]
[1770792737531,1.3930774,81.056,81.001,1.43341637]
[1770792737731,1.3930774,81.049,81.011,1.43341637]
[1770792737930,12.55861614,81.02,80.985,1.43341637]
[1770792738129,12.55861614,81.01,80.985,1.43341637]
[1770792738651,12.34430742,81.009,80.985,1.43341637]
[1770792739151,12.34430742,81.009,80.96,12.65861614]
[1770792739152,1.3930774,81.009,80.981,1.43341637]
[1770792739327,1.3930774,81.009,80.981,42.77341637]
[1770792739529,1.3930774,81.009,80.982,1.43341637]
[1770792740244,1.3930774,81.009,80.974,1.42998409]
[1770792740446,1.39912172,80.979,80.96,0.1]
[1770792740636,1.39912172,80.969,80.942,12.3543792]
[1770792741837,12.55861614,80.97,80.943,1.42998409]
[1770792742734,30.9,81.002,80.933,1.42998409]
[1770792742735,12.55861614,80.96,80.933,1.42998409]
[1770792743949,12.35122391,80.964,80.933,1.42998409]
[1770792744137,12.55861614,80.96,80.935,1.42998409]
[1770792744537,1.42438163,80.959,80.926,41.38]
[1770792744749,1.42438163,80.939,80.91,0.1]
[1770792745044,1.42438163,80.939,80.898,1.50903668]
[1770792745045,1.42438163,80.919,80.889,1.50903668]
[1770792745247,12.55861614,80.91,80.889,1.50903668]
[1770792745449,1.42438163,80.919,80.89,1.50903668]
[1770792746057,12.55861614,80.9,80.875,41.4]
[1770792746247,13.98299777,80.9,80.875,41.4]
[1770792746451,12.55861614,80.89,80.875,41.4]
[1770792746654,12.55861614,80.9,80.877,12.36432598]
[1770792746855,12.55861614,80.91,80.882,1.50903668]
[1770792747242,12.55861614,80.89,80.871,12.36534994]
[1770792747444,12.55861614,80.9,80.876,12.36449204]
[1770792748163,12.55861614,80.9,80.874,1.50903668]
[1770792749052,1.42438163,80.908,80.874,1.50903668]
[1770792749246,12.35986997,80.907,80.874,1.50903668]
[1770792749451,12.55861614,80.9,80.874,1.50903668]
[1770792749761,12.55861614,80.91,80.874,1.50903668]
[1770792749960,12.55861614,80.9,80.874,1.50903668]
[1770792750258,12.55861614,80.91,80.876,1.50903668]
[1770792750640,12.55861614,80.92,80.881,1.50903668]
[1770792750846,12.55861614,80.92,80.88,12.55861614]
[1770792750847,12.55861614,80.92,80.883,1.50903668]
[1770792751241,12.55861614,80.93,80.884,41.46]
[1770792751444,12.55861614,80.93,80.885,1.50903668]
[1770792752252,12.55861614,80.92,80.887,1.50903668]
[1770792752453,12.55861614,80.91,80.887,1.50903668]
[1770792752852,12.59464014,80.91,80.887,1.50903668]
[1770792755455,1.42438163,80.909,80.885,12.36314183]
[1770792755656,12.59464014,80.9,80.876,1.50903668]
[1770792756155,12.59464014,80.9,80.87,0.2514426]
[1770792756156,1.42438163,80.889,80.87,0.2514426]
[1770792756347,1.42438163,80.877,80.831,1.50903668]
[1770792756547,30.90855387,80.884,80.831,1.50903668]
[1770792756548,1.42438163,80.884,80.831,1.50903668]
[1770792756747,1.42438163,80.889,80.841,1.50903668]
[1770792757056,12.59464014,80.9,80.861,1.50903668]
[1770792757557,12.59464014,80.9,80.859,41.52]
[1770792757558,12.59464014,80.91,80.871,1.50903668]
[1770792757756,12.59464014,80.91,80.84,191.73676397]
[1770792757757,1.42438163,80.919,80.881,1.50903668]
[1770792757963,12.59464014,80.92,80.881,1.50903668]
[1770792758167,1.42438163,80.919,80.84,53.78658521]
[1770792758351,12.59464014,80.9,80.863,1.50903668]
[1770792759952,12.59464014,80.91,80.863,1.50903668]
[1770792760153,1.42438163,80.899,80.863,1.50903668]
[1770792760358,1.42438163,80.897,80.865,1.50903668]
[1770792760571,12.59464014,80.9,80.865,1.50903668]
[1770792760869,1.42438163,80.906,80.865,1.50903668]
[1770792761070,12.36039412,80.904,80.865,1.50903668]
[1770792761266,1.42438163,80.899,80.865,1.50903668]
[1770792761673,1.42438163,80.918,80.871,1.50903668]
[1770792762679,1.42438163,80.918,80.881,1.50903668]
[1770792763254,14.01902177,80.9,80.873,1.50903668]
[1770792763878,12.59464014,80.9,80.873,1.50903668]
[1770792764070,1.42438163,80.908,80.873,1.50903668]
[1770792764774,1.42438163,80.899,80.861,1.50903668]
[1770792765275,1.42438163,80.899,80.868,12.36578052]
[1770792765463,1.42438163,80.907,80.875,1.50903668]
[1770792765978,12.59464014,80.9,80.875,1.50903668]
[1770792766184,1.42438163,80.907,80.875,1.50903668]
[1770792766375,12.59464014,80.9,80.875,1.50903668]
[1770792766878,1.42438163,80.899,80.866,1.50903668]
[1770792767054,1.42438163,80.899,80.83,5.13032502]
[1770792767055,43.2633886,80.9,80.838,1.50903668]
[1770792767254,1.42438163,80.889,80.863,1.50903668]
[1770792767456,12.59464014,80.9,80.866,1.50903668]
[1770792767655,12.36017551,80.905,80.877,1.50903668]
[1770792767864,1.42438163,80.906,80.877,1.50903668]
[1770792768069,12.35956444,80.909,80.877,1.50903668]
[1770792768682,13.78394607,80.909,80.877,1.50903668]
[1770792768869,13.78275933,80.917,80.879,1.50903668]
[1770792769077,12.59464014,80.91,80.879,1.50903668]
[1770792769258,1.42438163,80.909,80.879,1.50903668]
[1770792769579,12.59464014,80.91,80.879,1.50903668]
[1770792769789,12.59464014,80.9,80.866,1.50903668]
[1770792770078,1.42438163,80.899,80.869,1.50903668]
[1770792770269,12.59464014,80.9,80.872,1.42240016]
[1770792770460,1.38071363,80.899,80.872,1.42240016]
[1770792770666,12.59464014,80.89,80.865,41.54]
[1770792770978,1.38071363,80.889,80.858,1.42240016]
[1770792771360,12.59464014,80.89,80.862,1.42240016]
[1770792771961,1.38071363,80.897,80.862,1.42240016]
[1770792772162,1.38071363,80.897,80.867,1.42240016]
[1770792772356,1.38071363,80.897,80.866,12.36613657]
[1770792772357,12.59464014,80.91,80.871,1.42240016]
[1770792772773,12.59464014,80.91,80.873,1.42240016]
[1770792772774,12.36064786,80.902,80.873,1.42240016]
[1770792772977,4.70249118,80.9,80.873,1.42240016]
[1770792773175,13.74136149,80.902,80.873,1.42240016]
[1770792773383,1.38071363,80.91,80.873,1.42240016]
[1770792773565,12.35956444,80.909,80.873,1.42240016]
[1770792773767,4.70249118,80.9,80.873,1.42240016]
[1770792774068,1.38071363,80.899,80.866,41.54]
[1770792774264,4.70249118,80.89,80.866,41.54]
[1770792774464,6.08320481,80.89,80.866,41.54]
[1770792774662,1.38071363,80.908,80.871,1.42240016]
[1770792774897,1.38071363,80.889,80.862,1.42240016]
[1770792775471,4.70249118,80.89,80.862,1.42240016]
[1770792775674,43.25847556,80.909,80.866,1.42240016]
[1770792775675,4.70249118,80.9,80.866,1.42240016]
[1770792776882,1.38071363,80.907,80.868,1.42240016]
[1770792777087,12.36002274,80.906,80.868,1.42240016]
[1770792777285,4.70249118,80.9,80.868,1.42240016]
[1770792778484,1.38071363,80.905,80.868,1.42240016]
[1770792778669,4.70249118,80.9,80.868,1.42240016]
[1770792778871,12.59624806,80.9,80.87,1.42240016]
[1770792779066,1.38071363,80.905,80.87,1.42240016]
[1770792779468,12.359836,80.908,80.87,1.42240016]
[1770792779669,12.59624806,80.91,80.871,1.42240016]
[1770792780087,1.38071363,80.913,80.871,1.42240016]
[1770792780300,12.59624806,80.91,80.871,1.42240016]
[1770792780471,12.59624806,80.92,80.881,1.42240016]
[1770792780671,1.38071363,80.909,80.881,1.42240016]
[1770792780886,12.59624806,80.91,80.881,1.42240016]
[1770792780887,1.38071363,80.907,80.881,1.42240016]
[1770792781781,1.38071363,80.907,80.864,41.58]
[1770792781782,1.38071363,80.899,80.87,1.42240016]
[1770792782291,1.38071363,80.899,80.873,12.36504875]
[1770792782594,1.38071363,80.899,80.873,1.42240016]
[1770792782888,1.38071363,80.899,80.865,1.42240016]
[1770792783089,1.38071363,80.899,80.863,12.3665498]
[1770792783090,1.38071363,80.879,80.85,1.42240016]
[1770792783293,43.26435758,80.898,80.843,1.42240016]
[1770792783294,12.59624806,80.87,80.843,1.42240016]
[1770792783592,1.38071363,80.869,80.843,1.42240016]
[1770792783789,1.38071363,80.859,80.832,1.42240016]
[1770792784092,13.97696169,80.87,80.832,1.42240016]
[1770792784270,1.38071363,80.869,80.832,1.42240016]
[1770792784906,12.59624806,80.87,80.832,1.42240016]
[1770792785199,12.36414891,80.879,80.834,1.42240016]
[1770792785782,12.59624806,80.87,80.834,1.42240016]
[1770792786170,1.38071363,80.878,80.834,1.42240016]
[1770792786373,1.38071363,80.869,80.834,1.42240016]
[1770792786574,1.38071363,80.859,80.819,1.42240016]
[1770792786791,12.59624806,80.87,80.834,1.42240016]
[1770792786985,12.59624806,80.88,80.842,12.36980777]
[1770792787193,24.96026832,80.88,80.843,1.42240016]
[1770792787370,12.59624806,80.87,80.843,1.42240016]
[1770792787794,12.59624806,80.88,80.843,1.42240016]
[1770792788098,12.36414891,80.879,80.843,1.42240016]
[1770792789495,13.74486254,80.879,80.845,1.42240016]
[1770792790402,1.38071363,80.878,80.845,1.42240016]
[1770792790605,1.38071363,80.883,80.845,1.42240016]
[1770792790904,30.90621359,80.89,80.845,1.42240016]
[1770792790905,13.97696169,80.88,80.845,1.42240016]
[1770792791280,1.38071363,80.879,80.837,1.42240016]
[1770792791485,12.59624806,80.85,80.829,41.68]
[1770792791706,12.59624806,80.85,80.83,12.37164419]
[1770792791898,12.59624806,80.84,80.815,1.42240016]
[1770792792201,12.59624806,80.84,80.806,1.50214336]
[1770792792388,13.74945041,80.849,80.82,1.50214336]
[1770792792679,12.59624806,80.84,80.82,1.50214336]
[1770792792885,12.59624806,80.85,80.823,1.50214336]
[1770792793408,43.28361899,80.862,80.814,1.50214336]
[1770792793409,12.59624806,80.84,80.814,1.50214336]
[1770792793903,12.59624806,80.83,80.806,1.50214336]
[1770792794207,12.59624806,80.82,80.796,1.50214336]
[1770792794510,12.59624806,80.81,80.78,0.1]
[1770792794800,12.59624806,80.81,80.791,1.50214336]
[1770792795000,12.59624806,80.81,80.783,1.50214336]
[1770792795202,12.59624806,80.81,80.78,12.47916804]
[1770792795504,12.59624806,80.81,80.78,0.1]
[1770792795800,12.59624806,80.79,80.78,0.1]
[1770792796001,12.59624806,80.79,80.757,1.50214336]
[1770792796182,12.59624806,80.88,80.771,1.50214336]
[1770792796379,12.59624806,80.88,80.77,12.59624806]
[1770792796380,12.59624806,80.82,80.773,1.50214336]
[1770792796584,12.59624806,80.82,80.781,1.50214336]
[1770792797780,12.59624806,80.84,80.791,1.50214336]
[1770792797986,12.59624806,80.83,80.793,1.50214336]
[1770792798486,12.37026682,80.839,80.8,12.59624806]
[1770792798695,12.37026682,80.839,80.801,1.50214336]
[1770792798893,12.59624806,80.83,80.801,1.50214336]
[1770792799711,12.37026682,80.839,80.793,1.50214336]
[1770792799712,12.59624806,80.82,80.793,1.50214336]
[1770792799894,12.59624806,80.83,80.793,1.50214336]
[1770792800212,12.37043514,80.838,80.801,1.50214336]
[1770792802207,12.37043514,80.838,80.803,1.50214336]
[1770792803387,30.96,80.86,80.803,1.50214336]
[1770792803588,2.47215037,101.33,80.821,1.50214336]
[1770792803589,12.3630789,80.886,80.821,1.50214336]
[1770792803803,30.90374238,80.897,80.841,1.50214336]
[1770792804006,12.59624806,80.89,80.851,1.50214336]
[1770792804188,12.36262038,80.889,80.853,1.50214336]
[1770792804686,12.59624806,80.87,80.844,12.3694422]
[1770792804888,12.36262038,80.889,80.851,1.50214336]
[1770792805310,12.35605199,80.932,80.871,1.50214336]
[1770792805495,12.59624806,80.91,80.871,1.50214336]
[1770792805688,12.59624806,80.9,80.871,1.50214336]
[1770792806087,12.59624806,80.91,80.871,1.50214336]
[1770792806285,12.59624806,80.92,80.881,1.50214336]
[1770792806498,12.59624806,80.9,80.873,1.50214336]
[1770792806787,12.59624806,80.9,80.864,1.50214336]
[1770792806985,12.59624806,80.88,80.858,12.36732349]
[1770792807204,12.59624806,80.89,80.863,1.50214336]
[1770792807404,12.59624806,80.9,80.867,1.50214336]
[1770792807613,12.59624806,80.91,80.873,1.50214336]
[1770792808110,12.59624806,80.9,80.873,1.50214336]
[1770792808502,12.59624806,80.9,80.874,12.36491332]
[1770792808813,12.59624806,80.9,80.875,1.50214336]
[1770792809209,12.36039073,80.904,80.875,1.50214336]
[1770792809401,12.35956444,80.909,80.875,1.50214336]
[1770792809708,12.59624806,80.91,80.875,1.50214336]
[1770792809926,12.35852998,80.916,80.881,1.50214336]
[1770792810292,12.35852998,80.916,80.88,12.59624806]
[1770792810293,12.59624806,80.92,80.883,1.50214336]
[1770792810708,12.59624806,80.93,80.891,1.50214336]
[1770792811198,12.59624806,80.93,80.882,12.36369031]
[1770792811199,12.59624806,80.94,80.901,1.50214336]
[1770792812012,12.59624806,80.94,80.911,1.50214336]
[1770792812402,12.35498338,80.939,80.911,1.50214336]
[1770792812711,5.13032502,80.965,80.893,30.90500095]
[1770792812712,12.35228428,80.957,80.921,1.50214336]
[1770792813626,12.35193122,80.959,80.921,1.50214336]
[1770792816394,12.35193122,80.959,80.923,1.50214336]
[1770792816900,12.57836775,80.95,80.923,1.50214336]
[1770792817096,0.02581792,80.929,80.896,12.36151027]
[1770792817303,12.57836775,80.92,80.881,1.50214336]
[1770792817510,12.57836775,80.91,80.884,12.36336428]
[1770792817711,12.57836775,80.91,80.885,1.50214336]
[1770792818123,12.57836775,80.9,80.875,1.50214336]
[1770792818505,12.57836775,80.89,80.866,1.50214336]
[1770792818701,12.36109222,80.899,80.866,1.50214336]
[1770792819402,12.57836775,80.9,80.873,13.86714305]
[1770792819602,12.57836775,80.9,80.873,1.50214336]
[1770792819822,12.57836775,80.89,80.873,1.50214336]
[1770792820130,12.57836775,80.88,80.858,1.50214336]
[1770792820427,12.57836775,80.87,80.845,13.87143279]
[1770792820804,12.57836775,80.88,80.846,1.50214336]
[1770792820998,12.57836775,80.87,80.846,1.50214336]
[1770792822128,12.57836775,80.87,80.847,12.36904275]
[1770792822310,12.57836775,80.87,80.848,1.50214336]
[1770792822513,12.57836775,80.88,80.848,1.50214336]
[1770792822716,12.57836775,80.87,80.848,1.50214336]
[1770792823523,12.57836775,80.86,80.835,12.37073986]
[1770792823823,12.57836775,80.86,80.83,13.87368938]
[1770792824212,12.57836775,80.86,80.831,1.50214336]
[1770792824603,12.57836775,80.85,80.822,1.50214336]
[1770792824810,12.57836775,80.84,80.815,1.50214336]
[1770792825017,12.57836775,80.84,80.798,30.94133338]
[1770792825018,12.57836775,80.83,80.806,1.50214336]
[1770792825215,12.57836775,80.84,80.806,1.50214336]
[1770792825404,12.57836775,80.83,80.806,1.50214336]
[1770792825606,43.28522489,80.859,80.813,1.50214336]
[1770792825607,0.03165911,80.858,80.813,1.50214336]
[1770792825815,12.57836775,80.84,80.813,1.50214336]
[1770792826214,24.94862358,80.84,80.813,1.50214336]
[1770792826926,0.03305831,80.859,80.815,1.50214336]
[1770792827128,24.94557416,80.86,80.821,1.50214336]
[1770792828402,24.94557416,80.86,80.823,1.50214336]
[1770792829613,12.57836775,80.87,80.831,1.50214336]
[1770792830031,12.57836775,80.86,80.831,1.50214336]
[1770792830634,30.94,80.887,80.816,1.50214336]
[1770792830635,12.57836775,80.84,80.816,1.50214336]
[1770792830932,12.57836775,80.85,80.816,1.50214336]
[1770792831529,12.36720711,80.859,80.821,1.50214336]
[1770792831733,12.57836775,80.86,80.833,1.50214336]
[1770792832033,12.57836775,80.85,80.825,1.50214336]
[1770792832536,12.57836775,80.85,80.826,1.50214336]
[1770792833924,12.36793371,80.855,80.826,1.50214336]
[1770792834131,12.57836775,80.85,80.818,1.50214336]
[1770792834432,12.57836775,80.85,80.823,1.50214336]
[1770792834630,12.36793371,80.855,80.823,1.50214336]
[1770792835208,0.03828308,80.864,80.823,1.50214336]
[1770792835531,30.91399161,80.87,80.833,1.50214336]
[1770792835532,12.57836775,80.87,80.833,1.50214336]
[1770792836327,12.57836775,80.87,80.841,1.50214336]
[1770792836523,0.03890731,80.874,80.841,1.50214336]
[1770792836837,12.57836775,80.87,80.841,1.50214336]
[1770792837415,0.04010901,80.849,80.811,1.50214336]
[1770792838236,154.5423075,80.884,80.821,1.50214336]
[1770792838237,0.04070327,80.859,80.821,1.50214336]
[1770792838423,12.57836775,80.85,80.821,1.50214336]
[1770792839028,12.61186183,80.84,80.821,1.50214336]
[1770792839226,12.61186183,80.84,80.81,1.50214336]
[1770792839425,43.29057873,80.849,80.811,1.50214336]
[1770792839633,12.61186183,80.84,80.811,1.50214336]
[1770792839838,43.29057873,80.849,80.802,41.78]
[1770792839839,12.36873678,80.849,80.819,1.50214336]
[1770792840133,0.04182608,80.858,80.823,1.50214336]
[1770792840513,0.04182608,80.849,80.811,1.50214336]
[1770792840725,0.04182608,80.849,80.816,12.37371764]
[1770792840926,12.61186183,80.84,80.802,1.50214336]
[1770792841130,12.37026682,80.839,80.805,12.37536582]
[1770792841326,12.61186183,80.85,80.811,1.50214336]
[1770792841517,0.04239171,80.849,80.811,1.50214336]
[1770792841727,12.61186183,80.84,80.811,1.50214336]
[1770792841931,0.04296352,80.839,80.811,1.50214336]
[1770792842536,12.61186183,80.85,80.811,1.50214336]
[1770792842737,0.04296352,80.849,80.811,1.50214336]
[1770792842933,12.61186183,80.84,80.811,1.50214336]
[1770792843139,0.04296352,80.849,80.811,1.50214336]
[1770792843450,12.61186183,80.84,80.813,1.50214336]
[1770792844247,0.04296352,80.849,80.813,1.50214336]
[1770792844449,0.04296352,80.849,80.812,1.50214336]
[1770792844946,0.04457041,80.847,80.8,1.50214336]
[1770792845152,0.04457041,80.849,80.813,1.50214336]
[1770792845360,12.36873678,80.849,80.821,1.50214336]
[1770792846243,30.88,80.864,80.831,1.50214336]
[1770792846244,12.36657218,80.864,80.831,1.50214336]
[1770792846628,0.04511314,80.859,80.82,12.61186183]
[1770792846830,0.04511314,80.859,80.821,1.50214336]
[1770792847234,12.61186183,80.85,80.821,1.50214336]
[1770792847440,0.04563608,80.85,80.822,13.87501213]
[1770792847750,0.04563608,80.888,80.841,1.50214336]
[1770792847935,0.04563608,80.888,80.851,1.50214336]
[1770792848138,0.04617361,80.904,80.861,1.50214336]
[1770792848343,12.3603017,80.905,80.871,1.50214336]
[1770792848542,12.61186183,80.91,80.881,1.50214336]
[1770792848865,12.61186183,80.92,80.881,1.50214336]
[1770792849241,0.04667737,80.929,80.881,1.50214336]
[1770792849438,12.61186183,80.93,80.891,1.50214336]
[1770792850167,0.0471828,80.919,80.882,12.36369031]
[1770792850341,0.0471828,80.919,80.883,1.50214336]
[1770792850537,0.0471828,80.927,80.883,1.50214336]
[1770792850736,0.0471828,80.929,80.891,1.50214336]
[1770792850936,12.61186183,80.92,80.891,1.50214336]
[1770792851431,12.35803704,80.919,80.891,1.50214336]
[1770792852555,0.0471828,80.929,80.891,1.50214336]
[1770792852752,12.61186183,80.92,80.891,1.50214336]
[1770792853560,0.04865361,80.95,80.911,1.50214336]
[1770792853742,25.01394569,80.95,80.911,1.50214336]
[1770792853937,25.01394569,80.95,80.921,1.50214336]
[1770792853938,12.3541001,80.945,80.921,1.50214336]
[1770792854437,12.61186183,80.95,80.921,1.50214336]
[1770792854638,12.35303924,80.952,80.931,1.50214336]
[1770792854965,12.35109401,80.965,80.931,1.50214336]
[1770792855750,0.04914068,80.969,80.931,1.50214336]
[1770792855950,12.35040571,80.969,80.941,1.50214336]
[1770792856553,12.61186183,80.95,80.922,1.50214336]
[1770792856853,30.92609641,80.969,80.931,1.50214336]
[1770792857047,0.05054421,80.949,80.917,41.66]
[1770792857366,12.35055824,80.968,80.931,1.50214336]
[1770792857664,12.61186183,80.96,80.931,1.50214336]
[1770792858041,12.35055824,80.968,80.931,1.50214336]
[1770792858242,12.35055824,80.968,80.94,1.50214336]
[1770792858438,12.81186183,80.97,80.94,1.50214336]
[1770792858753,0.2,80.97,80.941,1.50214336]
[1770792858956,12.35040571,80.969,80.941,1.50214336]
[1770792860058,0.2,80.97,80.943,1.50214336]
[1770792860259,12.55038036,80.97,80.943,1.50214336]
[1770792861161,0.2,80.97,80.945,1.50402514]
[1770792861541,0.2,80.97,80.951,1.50402514]
[1770792862462,12.35040571,80.969,80.942,1.50402514]
[1770792863059,0.2,80.97,80.943,12.35437283]
[1770792863362,0.2,80.97,80.944,1.50402514]
[1770792864760,0.2,80.97,80.951,1.50214336]
[1770792865056,0.2,80.97,80.952,1.50214336]
[1770792865846,0.2,80.97,80.951,12.3531519]
[1770792865847,12.34583143,80.999,80.961,1.43906453]
[1770792866165,12.34583143,80.999,80.971,1.43906453]
[1770792866457,12.85825013,81.01,80.971,1.43906453]
[1770792866458,43.20507597,81.009,80.971,1.43906453]
[1770792866859,12.61186183,81.0,80.971,1.43906453]
[1770792867862,12.34583143,80.999,80.971,1.43906453]
[1770792868063,12.34461219,81.007,80.972,12.34994813]
[1770792868264,12.34461219,81.007,80.973,1.43906453]
[1770792868646,0.44236454,81.025,80.981,1.43906453]
[1770792868847,12.61186183,81.01,80.981,1.43906453]
[1770792869460,12.34186979,81.025,80.981,1.43906453]
[1770792869646,12.34186979,81.025,80.991,1.43906453]
[1770792869843,12.34186979,81.025,80.982,1.43906453]
[1770792869844,0.43976282,81.024,80.982,1.43906453]
[1770792870150,0.43976282,81.019,80.984,12.34801105]
[1770792870357,12.34186979,81.025,80.993,1.43906453]
[1770792870664,0.43976282,81.024,80.993,1.43906453]
[1770792870860,12.61186183,81.02,80.993,1.43906453]
[1770792871461,0.43976282,81.024,80.993,1.43906453]
[1770792871865,12.34186979,81.025,80.993,1.43906453]
[1770792872258,0.43721925,81.024,80.993,1.43906453]
[1770792872474,0.43721925,81.024,80.995,1.43906453]
[1770792872663,24.9530059,81.03,80.995,1.43906453]
[1770792873254,30.84931037,81.04,81.001,1.43906453]
[1770792873558,0.43596721,81.039,81.001,1.43906453]
[1770792873957,0.43473006,81.029,80.994,13.7856581]
[1770792874165,12.34141284,81.028,80.995,1.43906453]
[1770792874348,12.34141284,81.028,80.982,12.3484231]
[1770792874349,30.82,81.052,81.001,1.43906453]
[1770792874549,0.2,81.06,81.021,1.43906453]
[1770792874746,12.61186183,81.08,81.041,1.43906453]
[1770792874946,12.54042108,81.08,81.041,1.43906453]
[1770792875465,0.43351169,81.079,81.041,1.43906453]
[1770792875969,0.43351169,81.079,81.025,36.36]
[1770792875970,12.54042108,81.06,81.031,1.43906453]
[1770792876272,12.33669302,81.059,81.031,1.43906453]
[1770792876475,12.54042108,81.06,81.032,1.43906453]
[1770792876772,12.54042108,81.08,81.041,1.43906453]
[1770792876955,12.54042108,81.07,81.041,1.43906453]
[1770792878763,43.59728943,81.082,81.034,13.7795318]
[1770792878764,12.54042108,81.06,81.034,13.7795318]
[1770792878960,0.4299332,81.069,81.038,12.33981064]
[1770792879160,12.54042108,81.07,81.039,1.43906453]
[1770792879372,0.42875424,81.078,81.039,1.43906453]
[1770792879878,12.54042108,81.07,81.039,1.43906453]
[1770792880179,0.42760557,81.069,81.039,1.43906453]
[1770792881179,0.42760557,81.069,81.031,1.43906453]
[1770792881180,12.54042108,81.06,81.031,1.43906453]
[1770792881476,12.96689224,81.06,81.031,1.43906453]
[1770792881674,43.16883949,81.077,81.008,41.4]
[1770792881675,12.54042108,81.05,81.023,1.43906453]
[1770792882067,12.54042108,81.04,81.013,1.43906453]
[1770792882270,0.42535636,81.047,81.013,1.43906453]
[1770792883073,12.33836738,81.048,80.995,1.43906453]
[1770792883074,0.42427079,81.029,80.995,1.43906453]
[1770792883375,12.54042108,81.02,80.997,12.3460224]
[1770792883574,0.42427079,81.029,80.997,12.3460224]
[1770792883777,12.54042108,81.03,80.998,1.43906453]
[1770792884086,12.54042108,81.03,81.002,1.43906453]
[1770792884587,12.54042108,81.02,80.991,1.43906453]
[1770792884766,0.42318351,81.029,80.991,1.43906453]
[1770792884978,12.54042108,81.03,80.996,1.43906453]
[1770792885271,0.42210996,81.029,80.996,1.43906453]
[1770792885872,12.96146691,81.02,80.985,1.43906453]
[1770792886080,12.96146691,81.01,80.978,12.34892553]
[1770792886378,12.34351149,81.015,80.981,1.43906453]
[1770792887165,5.13032502,81.039,80.978,12.34892553]
[1770792887166,12.34156515,81.027,80.991,1.43906453]
[1770792887508,12.7602178,81.036,80.991,1.43906453]
[1770792887668,12.7602178,81.036,80.978,43.2215082]
[1770792887669,12.34021835,81.036,81.001,1.43906453]
[1770792887863,12.33922458,81.043,81.011,1.43906453]
[1770792888269,12.33821515,81.049,81.013,1.43906453]
[1770792890094,12.33821515,81.049,81.01,12.54042108]
[1770792890095,12.95735487,81.04,81.004,1.43906453]
[1770792890385,12.33973765,81.039,81.009,12.34415681]
[1770792890593,12.33899168,81.044,81.011,1.42098058]
[1770792891288,12.54042108,81.05,81.011,1.42098058]
[1770792891289,24.87858331,81.05,81.011,1.42098058]
[1770792891490,0.41495138,81.059,81.021,1.42098058]
[1770792891680,0.41495138,81.039,81.01,1.42098058]
[1770792891884,0.41495138,81.031,80.985,1.42098058]
[1770792892081,12.54042108,81.02,80.991,13.76789475]
[1770792892281,24.88310095,81.02,80.992,1.42098058]
[1770792894078,12.34200066,81.025,80.992,1.42098058]
[1770792894295,24.88165578,81.03,80.994,1.42098058]
[1770792894500,12.3412347,81.03,81.001,1.42098058]
[1770792895197,12.33973765,81.039,81.001,1.42098058]